fUST/lending_fUST_20250719
["ID","MTS","AMOUNT","RATE_DAILY","PERIOD"]
[373201785,1752904245839,-460.0,0.00017534,2]
[373201786,1752904245848,-601.4,0.00017534,2]
[373201787,1752904245858,-460.0,0.00017534,2]
[373201788,1752904245867,-1787.24,0.00017534,2]
[373201789,1752904245877,-867.49,0.00017534,2]
[373201790,1752904245888,-3497.68,0.00017534,2]
[373201791,1752904245898,-460.0,0.00017534,2]
[373201792,1752904245907,-460.0,0.00017534,2]
[373201793,1752904245920,-460.0,0.00017534,2]
[373201794,1752904245930,-151.80139244,0.00017534,2]
[373201795,1752904245940,-985.27,0.00017534,2]
[373201796,1752904245949,-821.08,0.00017534,2]
[373201797,1752904245958,-460.0,0.00017534,2]
[373201798,1752904245968,-460.0,0.00017534,2]
[373201799,1752904245978,-460.0,0.00017534,2]
[373201800,1752904245987,-460.0,0.00017534,2]
[373201801,1752904245997,-460.0,0.00017534,2]
[373201802,1752904246008,-460.0,0.00017534,2]
[373201803,1752904246019,-1588.52,0.00017534,2]
[373201804,1752904246029,-506.05,0.00017534,2]
[373201805,1752904246038,-2548.48,0.00017534,2]
[373201806,1752904246049,-460.0,0.00017534,2]
[373201807,1752904246061,-460.0,0.00017534,2]
[373201809,1752904246070,-460.0,0.00017534,2]
[373201811,1752904246079,-460.0,0.00017534,2]
[373201813,1752904246090,-460.0,0.00017534,2]
[373201815,1752904246099,-460.0,0.00017534,2]
[373201817,1752904246108,-862.37,0.00017534,2]
[373201819,1752904246118,-460.0,0.00017534,2]
[373201821,1752904246128,-2428.98,0.00017534,2]
[373201823,1752904246138,-1726.01,0.00017534,2]
[373201825,1752904246147,-460.0,0.00017534,2]
[373201827,1752904246157,-460.0,0.00017534,2]
[373201829,1752904246166,-460.0,0.00017534,2]
[373201831,1752904246176,-508.02044078,0.00017568,2]
[373201834,1752904246186,-1557.89,0.000176,2]
[373201836,1752904246196,-729.81560196,0.00017616,2]
[373201838,1752904246205,-4359.75584848,0.00017728,2]
[373201841,1752904246215,-669.96,0.00017808,2]
[373201843,1752904246226,-310.8,0.00017808,2]
[373201845,1752904246235,-194.1,0.00017808,2]
[373201847,1752904246246,-460.0,0.00017808,2]
[373201849,1752904246256,-460.0,0.00017808,2]
[373201851,1752904246265,-460.0,0.00017808,2]
[373201853,1752904246275,-586.56849972,0.00017808,2]
[373201856,1752904246286,-1054.0,0.00017808,2]
[373201858,1752904246296,-460.0,0.00017808,2]
[373201860,1752904246305,-460.0,0.00017808,2]
[373201862,1752904246315,-520.3,0.00017808,2]
[373201864,1752904246324,-460.0,0.00017808,2]
[373201866,1752904246334,-460.0,0.00017808,2]
[373201868,1752904246344,-1082.33,0.00017808,2]
[373201870,1752904246354,-460.0,0.00017808,2]
[373201872,1752904246363,-632.77,0.00017808,2]
[373201874,1752904246374,-1647.74,0.00017808,2]
[373201876,1752904246383,-460.0,0.00017808,2]
[373201878,1752904246392,-460.0,0.00017808,2]
[373201879,1752904246402,-460.0,0.00017808,2]
[373201880,1752904246411,-471.27,0.00017808,2]
[373201881,1752904246421,-460.0,0.00017808,2]
[373201883,1752904246430,-460.0,0.00017808,2]
[373201885,1752904246439,-1036.4,0.00017808,2]
[373201886,1752904246448,-460.0,0.00017808,2]
[373201887,1752904246459,-511.91,0.00017808,2]
[373201888,1752904246469,-460.0,0.00017808,2]
[373201889,1752904246480,-601.4,0.00017808,2]
[373201890,1752904246489,-460.0,0.00017808,2]
[373201891,1752904246498,-1787.24,0.00017808,2]
[373201892,1752904246509,-867.49,0.00017808,2]
[373201893,1752904246519,-3497.68,0.00017808,2]
[373201894,1752904246530,-460.0,0.00017808,2]
[373201895,1752904246539,-460.0,0.00017808,2]
[373201896,1752904246549,-985.27,0.00017808,2]
[373201897,1752904246560,-821.08,0.00017808,2]
[373201898,1752904246569,-460.0,0.00017808,2]
[373201899,1752904246579,-460.0,0.00017808,2]
[373201900,1752904246588,-460.0,0.00017808,2]
[373201901,1752904246599,-460.0,0.00017808,2]
[373201902,1752904246609,-460.0,0.00017808,2]
[373201903,1752904246620,-460.0,0.00017808,2]
[373201904,1752904246629,-1588.52,0.00017808,2]
[373201905,1752904246638,-506.05,0.00017808,2]
[373201906,1752904246648,-2548.48,0.00017808,2]
[373201907,1752904246657,-460.0,0.00017808,2]
[373201908,1752904246666,-460.0,0.00017808,2]
[373201909,1752904246676,-460.0,0.00017808,2]
[373201910,1752904246685,-460.0,0.00017808,2]
[373201911,1752904246695,-460.0,0.00017808,2]
[373201912,1752904246704,-862.37,0.00017808,2]
[373201913,1752904246713,-460.0,0.00017808,2]
[373201914,1752904246724,-2428.98,0.00017808,2]
[373201915,1752904246734,-1726.01,0.00017808,2]
[373201916,1752904246744,-460.0,0.00017808,2]
[373201917,1752904246753,-460.0,0.00017808,2]
[373201918,1752904246763,-460.0,0.00017808,2]
[373201919,1752904246772,-420.0,0.00017963,2]
[373201920,1752904246781,-4359.75584848,0.00018003,2]
[373201921,1752904246791,-417.6,0.00018072,3]
[373201922,1752904246800,-500.0,0.0001808,2]
[373201923,1752904246810,-796.1726006,0.0001808,2]
[373201924,1752904246820,-796.1726006,0.0001808,2]
[373201925,1752904246831,-796.1726006,0.0001808,2]
[373201926,1752904246841,-154.39848289,0.0001808,2]
[373201927,1752904246851,-796.1726006,0.0001808,2]
[373201928,1752904246965,-796.1726006,0.0001808,2]
[373201929,1752904246976,-796.1726006,0.0001808,2]
[373201930,1752904246986,-796.1726006,0.0001808,2]
[373201931,1752904246997,-796.1726006,0.0001808,2]
[373201932,1752904247006,-796.1726006,0.0001808,2]
[373201933,1752904247016,-796.1726006,0.0001808,2]
[373201934,1752904247026,-796.1726006,0.0001808,2]
[373201935,1752904247035,-796.1726006,0.0001808,2]
[373201936,1752904247048,-796.1726006,0.0001808,2]
[373201937,1752904247061,-796.1726006,0.0001808,2]
[373201938,1752904247071,-154.497901,0.00018082,2]
[373201939,1752904247081,-669.96,0.00018082,2]
[373201940,1752904247092,-460.0,0.00018082,2]
[373201941,1752904247103,-460.0,0.00018082,2]
[373201942,1752904247112,-571.04,0.00018082,2]
[373201943,1752904247121,-1054.0,0.00018082,2]
[373201944,1752904247133,-203.08861171,0.00018082,2]
[373201945,1752904247142,-460.0,0.00018082,2]
[373201946,1752904247151,-476.15220808,0.00018082,2]
[373201947,1752904247161,-460.0,0.00018082,2]
[373201948,1752904247171,-1082.33,0.00018082,2]
[373201949,1752904247180,-460.0,0.00018082,2]
[373201950,1752904247190,-632.77,0.00018082,2]
[373201951,1752904247199,-1647.74,0.00018082,2]
[373201952,1752904247211,-460.0,0.00018082,2]
[373201953,1752904247224,-392.04858829,0.00018082,2]
[373201954,1752904247235,-471.27,0.00018082,2]
[373201955,1752904247247,-177.22860557,0.00018082,2]
[373201956,1752904247256,-460.0,0.00018082,2]
[373201957,1752904247266,-1036.4,0.00018082,2]
[373201958,1752904247277,-460.0,0.00018082,2]
[373201959,1752904247287,-511.91,0.00018082,2]
[373201960,1752904247296,-474.89216432,0.00018082,2]
[373201961,1752904247306,-601.4,0.00018082,2]
[373201962,1752904247315,-460.0,0.00018082,2]
[373201963,1752904247324,-1787.24,0.00018082,2]
[373201964,1752904247334,-867.49,0.00018082,2]
[373201965,1752904247343,-460.0,0.00018082,2]
[373201966,1752904247352,-3497.68,0.00018082,2]
[373201967,1752904247362,-460.0,0.00018082,2]
[373201968,1752904247371,-985.27,0.00018082,2]
[373201969,1752904247381,-821.08,0.00018082,2]
[373201970,1752904247390,-460.0,0.00018082,2]
[373201971,1752904247399,-460.0,0.00018082,2]
[373201972,1752904247409,-460.0,0.00018082,2]
[373201973,1752904247418,-460.0,0.00018082,2]
[373201974,1752904247427,-460.0,0.00018082,2]
[373201975,1752904247437,-460.0,0.00018082,2]
[373201976,1752904247446,-1588.52,0.00018082,2]
[373201977,1752904247456,-506.05,0.00018082,2]
[373201978,1752904247465,-2548.48,0.00018082,2]
[373201979,1752904247474,-460.0,0.00018082,2]
[373201980,1752904247484,-460.0,0.00018082,2]
[373201981,1752904247493,-460.0,0.00018082,2]
[373201982,1752904247503,-460.0,0.00018082,2]
[373201983,1752904247512,-460.0,0.00018082,2]
[373201984,1752904247522,-862.37,0.00018082,2]
[373201985,1752904247531,-460.0,0.00018082,2]
[373201986,1752904247541,-2428.98,0.00018082,2]
[373201987,1752904247551,-1726.01,0.00018082,2]
[373201988,1752904247560,-460.0,0.00018082,2]
[373201989,1752904247569,-460.0,0.00018082,2]
[373201990,1752904247579,-460.0,0.00018082,2]
[373201991,1752904247588,-839.454303,0.00018142,2]
[373201992,1752904247597,-215.67360783,0.00018142,2]
[373201993,1752904247607,-160.0,0.00018142,2]
[373201994,1752904247616,-214.52603969,0.00018142,2]
[373201995,1752904247626,-12612.80205064,0.00018142,2]
[373201996,1752904247635,-476.34170116,0.00018142,2]
[373201997,1752904247644,-230.94145789,0.00018142,2]
[373201998,1752904247654,-160.0,0.00018142,2]
[373201999,1752904247663,-160.0,0.00018142,2]
[373202000,1752904247672,-525.83049785,0.00018142,2]
[373202001,1752904247681,-160.0,0.00018142,2]
[373202002,1752904247691,-160.0,0.00018142,2]
[373202003,1752904247700,-4359.75584848,0.00018279,2]
[373202004,1752904247710,-669.96,0.00018356,2]
[373202005,1752904247719,-460.0,0.00018356,2]
[373202006,1752904247730,-548.07,0.00018356,2]
[373202007,1752904247739,-1054.0,0.00018356,2]
[373202008,1752904247748,-460.0,0.00018356,2]
[373202009,1752904247758,-460.0,0.00018356,2]
[373202010,1752904247767,-1082.33,0.00018356,2]
[373202011,1752904247776,-379.62,0.00018356,2]
[373202012,1752904247785,-632.77,0.00018356,2]
[373202013,1752904247794,-1647.74,0.00018356,2]
[373202014,1752904247804,-460.0,0.00018356,2]
[373202015,1752904247813,-471.27,0.00018356,2]
[373202016,1752904247822,-460.0,0.00018356,2]
[373202017,1752904247831,-460.0,0.00018356,2]
[373202018,1752904247841,-1036.4,0.00018356,2]
[373202019,1752904247851,-460.0,0.00018356,2]
[373202020,1752904247860,-511.91,0.00018356,2]
[373202021,1752904247870,-601.4,0.00018356,2]
[373202022,1752904247880,-460.0,0.00018356,2]
[373202023,1752904247889,-1787.24,0.00018356,2]
[373202024,1752904247898,-867.49,0.00018356,2]
[373202025,1752904247908,-460.0,0.00018356,2]
[373202026,1752904247917,-3497.68,0.00018356,2]
[373202027,1752904247926,-460.0,0.00018356,2]
[373202028,1752904247936,-985.27,0.00018356,2]
[373202029,1752904247945,-821.08,0.00018356,2]
[373202030,1752904247955,-460.0,0.00018356,2]
[373202031,1752904247964,-460.0,0.00018356,2]
[373202032,1752904247973,-460.0,0.00018356,2]
[373202033,1752904247982,-460.0,0.00018356,2]
[373202034,1752904247992,-460.0,0.00018356,2]
[373202035,1752904248002,-460.0,0.00018356,2]
[373202036,1752904248012,-1588.52,0.00018356,2]
[373202037,1752904248021,-506.05,0.00018356,2]
[373202038,1752904248030,-2548.48,0.00018356,2]
[373202039,1752904248040,-460.0,0.00018356,2]
[373202040,1752904248053,-460.0,0.00018356,2]
[373202041,1752904248063,-460.0,0.00018356,2]
[373202042,1752904248072,-460.0,0.00018356,2]
[373202043,1752904248081,-476.99766685,0.00018356,2]
[373202044,1752904248091,-862.37,0.00018356,2]
[373202045,1752904248100,-460.0,0.00018356,2]
[373202046,1752904248110,-2428.98,0.00018356,2]
[373202047,1752904248119,-1726.01,0.00018356,2]
[373202048,1752904248128,-460.0,0.00018356,2]
[373202049,1752904248138,-460.0,0.00018356,2]
[373202050,1752904248148,-460.0,0.00018356,2]
[373202051,1752904248157,-500.0,0.00018428,2]
[373202052,1752904248167,-500.0,0.00018428,2]
[373202053,1752904248176,-4359.75584848,0.00018555,2]
[373202054,1752904248186,-700.0,0.00018616,2]
[373202055,1752904248196,-669.96,0.0001863,2]
[373202056,1752904248205,-460.0,0.0001863,2]
[373202057,1752904248215,-1054.0,0.0001863,2]
[373202058,1752904248224,-460.0,0.0001863,2]
[373202059,1752904248234,-460.0,0.0001863,2]
[373202060,1752904248243,-1082.33,0.0001863,2]
[373202061,1752904248252,-632.77,0.0001863,2]
[373202062,1752904248262,-1647.74,0.0001863,2]
[373202063,1752904248271,-460.0,0.0001863,2]
[373202064,1752904248281,-471.27,0.0001863,2]
[373202065,1752904248290,-460.0,0.0001863,2]
[373202066,1752904248300,-1036.4,0.0001863,2]
[373202067,1752904248310,-460.0,0.0001863,2]
[373202068,1752904248320,-511.91,0.0001863,2]
[373202069,1752904248329,-601.4,0.0001863,2]
[373202070,1752904248339,-460.0,0.0001863,2]
[373202071,1752904248348,-1787.24,0.0001863,2]
[373202072,1752904248358,-867.49,0.0001863,2]
[373202073,1752904248368,-460.0,0.0001863,2]
[373202074,1752904248378,-3497.68,0.0001863,2]
[373202075,1752904248387,-460.0,0.0001863,2]
[373202076,1752904248398,-985.27,0.0001863,2]
[373202077,1752904248407,-821.08,0.0001863,2]
[373202078,1752904248416,-460.0,0.0001863,2]
[373202079,1752904248426,-460.0,0.0001863,2]
[373202080,1752904248435,-460.0,0.0001863,2]
[373202081,1752904248444,-460.0,0.0001863,2]
[373202082,1752904248454,-460.0,0.0001863,2]
[373202083,1752904248464,-460.0,0.0001863,2]
[373202084,1752904248474,-1588.52,0.0001863,2]
[373202085,1752904248483,-506.05,0.0001863,2]
[373202086,1752904248493,-2548.48,0.0001863,2]
[373202087,1752904248503,-460.0,0.0001863,2]
[373202088,1752904248512,-460.0,0.0001863,2]
[373202089,1752904248522,-460.0,0.0001863,2]
[373202090,1752904248532,-460.0,0.0001863,2]
[373202091,1752904248541,-862.37,0.0001863,2]
[373202092,1752904248550,-460.0,0.0001863,2]
[373202093,1752904248560,-2428.98,0.0001863,2]
[373202094,1752904248570,-1726.01,0.0001863,2]
[373202095,1752904248580,-418.53398278,0.0001863,2]
[373202096,1752904248590,-460.0,0.0001863,2]
[373202097,1752904248599,-460.0,0.0001863,2]
[373202098,1752904248609,-500.0,0.00018702,2]
[373202099,1752904248619,-500.0,0.00018702,2]
[373202100,1752904248629,-4359.75584848,0.00018831,2]
[373202101,1752904248638,-729.81560196,0.00018895,2]
[373202102,1752904248648,-1445.0674579,0.000189,2]
[373202103,1752904248658,-669.96,0.00018904,2]
[373202104,1752904248667,-460.0,0.00018904,2]
[373202105,1752904248677,-1054.0,0.00018904,2]
[373202106,1752904248687,-460.0,0.00018904,2]
[373202107,1752904248696,-460.0,0.00018904,2]
[373202108,1752904248706,-1082.33,0.00018904,2]
[373202109,1752904248716,-632.77,0.00018904,2]
[373202110,1752904248727,-1647.74,0.00018904,2]
[373202111,1752904248737,-460.0,0.00018904,2]
[373202112,1752904248746,-471.27,0.00018904,2]
[373202113,1752904248755,-460.0,0.00018904,2]
[373202114,1752904248765,-1036.4,0.00018904,2]
[373202115,1752904248775,-460.0,0.00018904,2]
[373202116,1752904248784,-511.91,0.00018904,2]
[373202117,1752904248794,-601.4,0.00018904,2]
[373202118,1752904248803,-460.0,0.00018904,2]
[373202119,1752904248813,-1787.24,0.00018904,2]
[373202120,1752904248823,-867.49,0.00018904,2]
[373202121,1752904248832,-460.0,0.00018904,2]
[373202122,1752904248842,-3497.68,0.00018904,2]
[373202123,1752904248851,-460.0,0.00018904,2]
[373202124,1752904248861,-985.27,0.00018904,2]
[373202125,1752904248871,-821.08,0.00018904,2]
[373202126,1752904248881,-460.0,0.00018904,2]
[373202127,1752904248890,-460.0,0.00018904,2]
[373202128,1752904248900,-460.0,0.00018904,2]
[373202129,1752904248910,-460.0,0.00018904,2]
[373202130,1752904248919,-460.0,0.00018904,2]
[373202131,1752904248930,-460.0,0.00018904,2]
[373202132,1752904248940,-1588.52,0.00018904,2]
[373202133,1752904248949,-506.05,0.00018904,2]
[373202134,1752904248959,-2548.48,0.00018904,2]
[373202135,1752904248968,-460.0,0.00018904,2]
[373202136,1752904248979,-460.0,0.00018904,2]
[373202137,1752904248988,-460.0,0.00018904,2]
[373202138,1752904248998,-460.0,0.00018904,2]
[373202139,1752904249007,-862.37,0.00018904,2]
[373202140,1752904249017,-460.0,0.00018904,2]
[373202141,1752904249027,-2428.98,0.00018904,2]
[373202142,1752904249037,-1726.01,0.00018904,2]
[373202143,1752904249047,-460.0,0.00018904,2]
[373202144,1752904249062,-460.0,0.00018904,2]
[373202145,1752904249072,-500.0,0.00018976,2]
[373202146,1752904249082,-182.52807795,0.00018976,2]
[373202147,1752904249092,-199.784375,0.00018976,2]
[373202148,1752904249102,-4359.75584848,0.00019107,2]
[373202149,1752904249112,-160.0,0.00019173,2]
[373202150,1752904249122,-669.96,0.00019178,2]
[373202151,1752904249133,-460.0,0.00019178,2]
[373202152,1752904249143,-1054.0,0.00019178,2]
[373202153,1752904249152,-460.0,0.00019178,2]
[373202154,1752904249161,-460.0,0.00019178,2]
[373202155,1752904249171,-1082.33,0.00019178,2]
[373202156,1752904249181,-632.77,0.00019178,2]
[373202157,1752904249190,-1647.74,0.00019178,2]
[373202158,1752904249200,-460.0,0.00019178,2]
[373202159,1752904249210,-471.27,0.00019178,2]
[373202160,1752904249220,-460.0,0.00019178,2]
[373202161,1752904249231,-1036.4,0.00019178,2]
[373202162,1752904249241,-460.0,0.00019178,2]
[373202163,1752904249251,-511.91,0.00019178,2]
[373202164,1752904249261,-601.4,0.00019178,2]
[373202165,1752904249270,-594.99335677,0.00019178,2]
[373202166,1752904249280,-1787.24,0.00019178,2]
[373202167,1752904249289,-460.0,0.00019178,2]
[373202168,1752904249299,-867.49,0.00019178,2]
[373202169,1752904249308,-3497.68,0.00019178,2]
[373202170,1752904249317,-460.0,0.00019178,2]
[373202171,1752904249327,-985.27,0.00019178,2]
[373202172,1752904249336,-821.08,0.00019178,2]
[373202173,1752904249346,-460.0,0.00019178,2]
[373202174,1752904249356,-460.0,0.00019178,2]
[373202175,1752904249366,-460.0,0.00019178,2]
[373202176,1752904249377,-460.0,0.00019178,2]
[373202177,1752904249389,-460.0,0.00019178,2]
[373202178,1752904249399,-460.0,0.00019178,2]
[373202179,1752904249410,-1588.52,0.00019178,2]
[373202180,1752904249419,-506.05,0.00019178,2]
[373202181,1752904249428,-2548.48,0.00019178,2]
[373202182,1752904249438,-460.0,0.00019178,2]
[373202183,1752904249448,-460.0,0.00019178,2]
[373202184,1752904249457,-460.0,0.00019178,2]
[373202185,1752904249467,-460.0,0.00019178,2]
[373202186,1752904249478,-862.37,0.00019178,2]
[373202187,1752904249488,-460.0,0.00019178,2]
[373202188,1752904249498,-2428.98,0.00019178,2]
[373202189,1752904249509,-1726.01,0.00019178,2]
[373202190,1752904249519,-460.0,0.00019178,2]
[373202191,1752904249529,-460.0,0.00019178,2]
[373202192,1752904249539,-5000.0,0.00019178,2]
[373202193,1752904249548,-5000.0,0.00019178,2]
[373202194,1752904249558,-171.15023,0.00019178,2]
[373202195,1752904249568,-500.0,0.00019231,2]
[373202196,1752904249578,-501.51906247,0.00019231,2]
[373202197,1752904249589,-618.97160078,0.00019231,2]
[373202198,1752904249599,-501.04531724,0.00019231,2]
[373202199,1752904249609,-500.0,0.00019247,2]
[373202200,1752904249618,-500.0,0.0001925,2]
[373202201,1752904249627,-500.0,0.00019281,2]
[373202202,1752904249741,-440.43305097,0.00019329,2]
[373202203,1752904249752,-99221.46911286,0.00019329,2]
[373202204,1752904249762,-305.33086894,0.00019373,2]
[373202205,1752904249772,-150.44874067,0.00019373,2]
[373202206,1752904249782,-170.18971475,0.00019373,2]
[373202207,1752904249791,-4359.75584848,0.00019383,2]
[373202208,1752904249802,-669.96,0.00019452,2]
[373202209,1752904249811,-231.56,0.00019452,2]
[373202210,1752904249822,-1054.0,0.00019452,2]
[373202211,1752904249834,-460.0,0.00019452,2]
[373202212,1752904249843,-460.0,0.00019452,2]
[373202213,1752904249853,-1082.33,0.00019452,2]
[373202214,1752904249863,-255.79144,0.00019452,2]
[373202215,1752904249873,-632.77,0.00019452,2]
[373202216,1752904249883,-1647.74,0.00019452,2]
[373202217,1752904249892,-201.17123815,0.00019452,2]
[373202218,1752904249901,-471.27,0.00019452,2]
[373202219,1752904249911,-460.0,0.00019452,2]
[373202220,1752904249920,-460.0,0.00019452,2]
[373202221,1752904249929,-1036.4,0.00019452,2]
[373202222,1752904249939,-511.91,0.00019452,2]
[373202223,1752904249949,-601.4,0.00019452,2]
[373202224,1752904249959,-1787.24,0.00019452,2]
[373202225,1752904249968,-460.0,0.00019452,2]
[373202226,1752904249977,-867.49,0.00019452,2]
[373202227,1752904249987,-3497.68,0.00019452,2]
[373202228,1752904249996,-460.0,0.00019452,2]
[373202229,1752904250006,-985.27,0.00019452,2]
[373202230,1752904250015,-821.08,0.00019452,2]
[373202231,1752904250025,-460.0,0.00019452,2]
[373202232,1752904250035,-460.0,0.00019452,2]
[373202233,1752904250044,-460.0,0.00019452,2]
[373202234,1752904250056,-460.0,0.00019452,2]
[373202235,1752904250066,-460.0,0.00019452,2]
[373202236,1752904250076,-592.34,0.00019452,2]
[373202237,1752904250086,-1588.52,0.00019452,2]
[373202238,1752904250096,-506.05,0.00019452,2]
[373202239,1752904250105,-2548.48,0.00019452,2]
[373202240,1752904250115,-460.0,0.00019452,2]
[373202241,1752904250124,-460.0,0.00019452,2]
[373202242,1752904250135,-460.0,0.00019452,2]
[373202243,1752904250146,-192.6857543,0.00019452,2]
[373202244,1752904250156,-862.37,0.00019452,2]
[373202245,1752904250165,-460.0,0.00019452,2]
[373202246,1752904250175,-2428.98,0.00019452,2]
[373202247,1752904250184,-1726.01,0.00019452,2]
[373202248,1752904250194,-460.0,0.00019452,2]
[373202249,1752904250203,-460.0,0.00019452,2]
[373202250,1752904250212,-500.0,0.00019524,2]
[373202251,1752904250222,-151.0,0.000196,2]
[373202252,1752904250232,-7356.9806417,0.00019611,2]
[373202253,1752904250242,-587.0,0.00019631,2]
[373202254,1752904250250,-4359.75584848,0.00019659,2]
[373202255,1752904250259,-700.0,0.00019712,2]
[373202256,1752904250268,-260.0,0.00019721,2]
[373202257,1752904250279,-669.96,0.00019726,2]
[373202258,1752904250291,-1054.0,0.00019726,2]
[373202259,1752904250302,-460.0,0.00019726,2]
[373202260,1752904250312,-460.0,0.00019726,2]
[373202261,1752904250321,-1082.33,0.00019726,2]
[373202262,1752904250331,-632.77,0.00019726,2]
[373202263,1752904250342,-1647.74,0.00019726,2]
[373202264,1752904250352,-471.27,0.00019726,2]
[373202265,1752904250363,-460.0,0.00019726,2]
[373202266,1752904250372,-460.0,0.00019726,2]
[373202267,1752904250383,-1036.4,0.00019726,2]
[373202268,1752904250393,-511.91,0.00019726,2]
[373202269,1752904250402,-601.4,0.00019726,2]
[373202270,1752904250411,-1787.24,0.00019726,2]
[373202271,1752904250420,-460.0,0.00019726,2]
[373202272,1752904250430,-867.49,0.00019726,2]
[373202273,1752904250439,-3497.68,0.00019726,2]
[373202274,1752904250448,-211.06105231,0.00019726,2]
[373202275,1752904250458,-985.27,0.00019726,2]
[373202276,1752904250467,-821.08,0.00019726,2]
[373202277,1752904250478,-460.0,0.00019726,2]
[373202278,1752904250487,-460.0,0.00019726,2]
[373202279,1752904250496,-477.7346262,0.00019726,2]
[373202280,1752904250507,-460.0,0.00019726,2]
[373202281,1752904250516,-460.0,0.00019726,2]
[373202282,1752904250525,-1588.52,0.00019726,2]
[373202283,1752904250535,-506.05,0.00019726,2]
[373202284,1752904250544,-2548.48,0.00019726,2]
[373202285,1752904250553,-460.0,0.00019726,2]
[373202286,1752904250563,-460.0,0.00019726,2]
[373202287,1752904250572,-460.0,0.00019726,2]
[373202288,1752904250581,-460.0,0.00019726,2]
[373202289,1752904250591,-862.37,0.00019726,2]
[373202290,1752904250600,-2428.98,0.00019726,2]
[373202291,1752904250610,-1726.01,0.00019726,2]
[373202292,1752904250619,-460.0,0.00019726,2]
[373202293,1752904250628,-151.0,0.00019736,2]
[373202294,1752904250638,-3801.642,0.00019736,2]
[373202295,1752904250647,-207.4,0.00019736,2]
[373202296,1752904250657,-151.0,0.00019736,2]
[373202297,1752904250667,-151.0,0.00019736,2]
[373202298,1752904250676,-151.0,0.00019736,2]
[373202299,1752904250686,-151.0,0.00019736,2]
[373202300,1752904250695,-151.0,0.00019736,2]
[373202301,1752904250705,-151.0,0.00019736,2]
[373202302,1752904250715,-151.0,0.00019736,2]
[373202303,1752904250724,-151.0,0.00019736,2]
[373202304,1752904250735,-151.0,0.00019736,2]
[373202305,1752904250744,-151.0,0.00019736,2]
[373202306,1752904250753,-151.0,0.00019736,2]
[373202307,1752904250763,-151.0,0.00019736,2]
[373202308,1752904250772,-151.0,0.00019736,2]
[373202309,1752904250782,-151.0,0.00019736,2]
[373202310,1752904250791,-151.0,0.00019736,2]
[373202311,1752904250801,-151.0,0.00019736,2]
[373202312,1752904250811,-151.0,0.00019736,2]
[373202313,1752904250820,-25000.0,0.00019736,2]
[373202314,1752904250830,-151.0,0.00019736,2]
[373202315,1752904250839,-151.0,0.00019736,2]
[373202316,1752904250848,-151.0,0.00019736,2]
[373202317,1752904250858,-716.45673598,0.00019736,2]
[373202318,1752904250867,-503.40908628,0.00019779,2]
[373202319,1752904250877,-3942.302754,0.00019791,2]
[373202320,1752904250886,-500.0,0.00019798,2]
[373202321,1752904250897,-1000.0,0.00019829,2]
[373202322,1752904250907,-305.40284297,0.00019846,2]
[373202323,1752904250918,-10397.95744084,0.0001985,2]